bitfinex/quotes_SOLUSD_20241205
["timestamp","ask_amount","ask_price","bid_price","bid_amount"]
[1733416061262,10.3917,240.58,240.51,19.86547908]
[1733416061637,19.86547908,240.57,240.48,19.86547908]
[1733416062037,10.3917,240.58,240.5,19.86547908]
[1733416062273,10.3917,240.58,240.42,4.0133]
[1733416062274,19.86547908,240.55,240.46,19.86547908]
[1733416062442,19.86547908,240.53,240.42,4.0133]
[1733416062639,19.86547908,240.53,240.44,19.86547908]
[1733416063465,0.12549,240.51,240.44,19.86547908]
[1733416064062,0.12549,240.51,240.46,19.86547908]
[1733416064239,0.12549,240.51,240.49,312.0]
[1733416065068,0.12549,240.51,240.44,19.86547908]
[1733416066241,19.99096908,240.51,240.42,19.86547908]
[1733416066563,0.12549,240.49,240.42,19.86547908]
[1733416066873,20.0,240.48,240.43,23.776884]
[1733416067866,20.0,240.44,240.36,4.0399]
[1733416068072,20.0,240.44,240.38,19.86547908]
[1733416069237,20.0,240.49,240.41,23.776884]
[1733416069438,20.0,240.49,240.42,19.86547908]
[1733416069964,19.86547908,240.48,240.41,23.776884]
[1733416070343,20.0,240.49,240.42,19.86547908]
[1733416070955,20.0,240.49,240.47,312.0]
[1733416071151,16.09547908,240.5,240.47,312.0]
[1733416071979,16.09547908,240.5,240.42,19.86547908]
[1733416073050,20.0,240.47,240.42,19.86547908]
[1733416073370,20.0,240.47,240.43,23.776884]
[1733416073969,20.0,240.47,240.45,12.44556855]
[1733416074272,12.44556855,240.53,240.46,23.776884]
[1733416074860,10.393,240.55,240.46,23.776884]
[1733416075074,12.44556855,240.54,240.52,312.0]
[1733416075457,10.3937,240.53,240.46,23.776884]
[1733416075655,20.0,240.5,240.46,23.776884]
[1733416076573,20.0,240.49,240.46,23.776884]
[1733416077365,20.0,240.49,240.44,23.776884]
[1733416077558,20.0,240.45,240.41,12.44556855]
[1733416077773,20.0,240.45,240.39,12.44556855]
[1733416078043,12.44556855,240.43,240.35,12.44556855]
[1733416078250,20.0,240.4,240.35,12.44556855]
[1733416078447,20.0,240.4,240.39,312.0]
[1733416079571,30.3993,240.4,240.39,312.0]
[1733416081980,30.3993,240.4,240.39,335.776884]
[1733416082164,42.84486855,240.4,240.39,312.0]
[1733416083158,42.84486855,240.4,240.26,12.44556855]
[1733416083362,12.44556855,240.34,240.26,12.44556855]
[1733416083658,20.0,240.31,240.28,12.44556855]
[1733416083852,20.0,240.31,240.3,12.44556855]
[1733416084080,12.44556855,240.42,240.3,324.44556855]
[1733416084279,22.84336855,240.44,240.37,12.44556855]
[1733416084576,10.3978,240.44,240.37,12.44556855]
[1733416084880,12.44556855,240.42,240.36,23.776884]
[1733416085373,12.44556855,240.4,240.34,23.776884]
[1733416085783,20.0,240.37,240.34,23.776884]
[1733416085962,20.0,240.37,240.32,23.776884]
[1733416086175,20.0,240.33,240.32,23.776884]
[1733416086685,20.0,240.33,240.28,19.93690856]
[1733416086878,19.93690856,240.38,240.3,19.93690856]
[1733416087058,20.0,240.35,240.3,19.93690856]
[1733416087660,20.0,240.35,240.34,312.0]
[1733416088072,20.0,240.35,240.34,335.776884]
[1733416089476,20.0,240.35,240.34,312.0]
[1733416091254,20.0,240.35,240.24,3.8113]
[1733416091255,30.4015,240.35,240.24,3.8113]
[1733416091454,19.93690856,240.31,240.22,19.93690856]
[1733416091667,50.33840856,240.35,240.26,19.93690856]
[1733416091875,20.0,240.34,240.3,19.93690856]
[1733416092073,10.4,240.39,240.3,19.93690856]
[1733416092074,30.33690856,240.39,240.3,19.93690856]
[1733416092681,20.0,240.36,240.34,19.93690856]
[1733416092860,10.4,240.39,240.35,23.776884]
[1733416093056,30.33690856,240.39,240.35,23.776884]
[1733416093282,19.93690856,240.37,240.35,23.776884]
[1733416093478,30.33690856,240.39,240.31,23.776884]
[1733416094266,30.33690856,240.39,240.37,312.0]
[1733416098092,20.0,240.36,240.29,23.776884]
[1733416098275,39.93690856,240.36,240.29,23.776884]
[1733416098970,19.93690856,240.38,240.31,23.776884]
[1733416099294,10.4,240.39,240.32,19.93690856]
[1733416099474,10.4,240.39,240.33,23.776884]
[1733416099994,19.93690856,240.4,240.33,23.776884]
[1733416101095,19.93690856,240.4,240.39,312.0]
[1733416103092,30.33650856,240.4,240.32,19.93690856]
[1733416106079,12.45900379,240.39,240.35,312.0]
[1733416106674,12.45900379,240.39,240.31,12.45900379]
[1733416106883,12.45900379,240.39,240.32,23.776884]
[1733416108401,12.45900379,240.43,240.35,12.45900379]
[1733416109097,12.45900379,240.45,240.37,12.45900379]
[1733416109397,12.45900379,240.45,240.38,23.776884]
[1733416109772,12.45900379,240.45,240.41,312.0]
[1733416110609,10.397,240.46,240.41,312.0]
[1733416110610,12.45900379,240.43,240.41,312.0]
[1733416110772,12.45900379,240.43,240.34,23.776884]
[1733416110973,12.45900379,240.41,240.34,23.776884]
[1733416111707,12.45900379,240.39,240.31,12.45900379]
[1733416112686,10.4001,240.38,240.3,3.7759]
[1733416112880,12.45900379,240.37,240.29,12.45900379]
[1733416113791,12.45900379,240.37,240.33,312.0]
[1733416114409,12.45900379,240.35,240.27,12.45900379]
[1733416114699,12.45900379,240.31,240.19,4.1639]
[1733416114893,12.45900379,240.31,240.23,12.45900379]
[1733416115271,6.1792,240.36,240.19,16.62290379]
[1733416115272,12.45900379,240.27,240.19,16.62290379]
[1733416115602,12.45900379,240.27,240.19,12.45900379]
[1733416116605,20.01285096,240.36,240.13,3.8505]
[1733416116606,12.45900379,240.2,240.13,3.8505]
[1733416117282,12.45900379,240.2,240.16,312.0]
[1733416117901,12.45900379,240.2,240.12,12.45900379]
[1733416118089,12.45900379,240.2,240.06,10.4231]
[1733416118090,20.0,240.17,240.06,10.4231]
[1733416118297,12.45900379,240.16,240.06,16.30950379]
[1733416118677,12.45900379,240.16,240.08,12.45900379]
[1733416118976,12.45900379,240.16,240.13,312.0]
[1733416121301,12.45900379,240.14,240.13,312.0]
[1733416121476,12.45900379,240.16,240.13,312.0]
[1733416122880,12.45900379,240.14,240.13,312.0]
[1733416124212,20.0,240.1,240.01,16.48270379]
[1733416124368,12.45900379,240.09,240.01,16.48270379]
[1733416125302,12.45900379,240.07,239.99,12.45900379]
[1733416125688,12.45900379,240.03,239.95,16.60600379]
[1733416126506,20.0,240.1,239.87,4.0198]
[1733416126507,12.45900379,240.01,239.87,4.0198]
[1733416126796,12.45900379,239.99,239.9,12.45900379]
[1733416126976,12.45900379,239.99,239.96,312.0]
[1733416128976,12.45900379,240.01,239.96,312.0]
[1733416129176,20.0,239.98,239.96,312.0]
[1733416129376,12.45900379,240.01,239.96,312.0]
[1733416130503,12.45900379,239.99,239.96,312.0]
[1733416130687,32.45900379,239.97,239.96,312.0]
[1733416131184,32.45900379,239.97,239.89,12.45900379]
[1733416131389,12.45900379,239.95,239.84,6.1743]
[1733416131578,12.45900379,239.95,239.86,12.45900379]
[1733416131783,12.45900379,239.95,239.88,11.95900379]
[1733416132197,12.45900379,239.93,239.86,12.45900379]
[1733416132402,12.45900379,239.87,239.74,3.8631]
[1733416132597,12.45900379,239.84,239.75,12.45900379]
[1733416132912,12.45900379,239.84,239.77,12.45900379]
[1733416133101,12.45900379,239.84,239.75,12.45900379]
[1733416133298,34.271884,239.83,239.65,0.6255807]
[1733416133506,12.45900379,239.8,239.72,12.45900379]
[1733416134193,6.3356,239.83,239.76,312.0]
[1733416134407,12.45900379,239.81,239.76,312.0]
[1733416134807,18.79460379,239.83,239.76,312.0]
[1733416135029,12.45900379,239.81,239.76,312.0]
[1733416136723,12.45900379,239.83,239.76,12.45900379]
[1733416137327,12.45900379,239.85,239.78,12.45900379]
[1733416137529,12.45900379,239.87,239.8,12.45900379]
[1733416137894,12.45900379,239.89,239.82,12.45900379]
[1733416138120,12.45900379,239.93,239.86,12.45900379]
[1733416138297,12.45900379,239.95,239.86,12.45900379]
[1733416138697,11.35884597,239.95,239.88,12.45900379]
[1733416139323,6.3182,240.0,239.8,23.776884]
[1733416139614,12.45900379,239.95,239.87,12.45900379]
[1733416139816,1.46860173,240.01,239.8,23.776884]
[1733416139817,6.5939,240.05,239.94,12.45900379]
[1733416140000,19.99127425,240.04,239.97,19.99127425]
[1733416140198,19.99127425,240.03,239.96,19.99127425]
[1733416140627,19.99127425,240.04,239.97,19.99127425]
[1733416140799,19.99127425,240.07,239.99,19.99127425]
[1733416140995,19.99127425,240.05,239.97,19.99127425]
[1733416141194,19.99127425,240.07,239.99,19.99127425]
[1733416141429,19.99127425,240.07,240.01,19.99127425]
[1733416141735,19.99127425,240.09,240.01,19.99127425]
[1733416142412,19.99127425,240.07,239.99,19.99127425]
[1733416142621,19.99127425,240.09,240.01,19.99127425]
[1733416143203,19.99127425,240.09,240.04,312.0]
[1733416143630,19.99127425,240.14,240.04,312.0]
[1733416143806,19.99127425,240.14,240.07,19.99127425]
[1733416144012,19.99127425,240.12,240.05,19.99127425]
[1733416144228,19.99127425,240.12,240.03,19.99127425]
[1733416144433,19.99127425,240.14,240.06,19.99127425]
[1733416146227,19.99127425,240.12,240.04,19.99127425]
[1733416146430,19.99127425,240.13,240.05,19.99127425]
[1733416146810,19.99127425,240.13,240.07,312.0]
[1733416147110,19.99127425,240.12,240.07,312.0]
[1733416147347,19.99127425,240.13,240.07,312.0]
[1733416149426,19.99127425,240.12,240.07,312.0]
[1733416149738,19.99127425,240.12,239.97,19.99127425]
[1733416149739,19.99127425,240.08,239.97,19.99127425]
[1733416149913,19.99127425,240.06,239.97,19.99127425]
[1733416150434,19.99127425,240.04,239.95,24.06467425]
[1733416150633,19.99127425,240.02,239.95,24.06467425]
[1733416151006,19.99127425,240.0,239.93,19.99127425]
[1733416151207,19.99127425,239.98,239.91,19.99127425]
[1733416151423,19.99127425,240.01,239.93,19.99127425]
[1733416151818,19.99127425,240.02,239.94,19.99127425]
[1733416152404,19.99127425,240.02,239.95,19.99127425]
[1733416152634,19.99127425,240.03,239.96,331.99127425]
[1733416153229,10.4133,240.08,239.89,4.1156]
[1733416153230,19.99127425,240.07,240.0,19.99127425]
[1733416153540,20.0,240.05,240.0,19.99127425]
[1733416155043,19.99127425,240.09,240.02,19.99127425]
[1733416155411,19.99127425,240.09,240.01,19.99127425]
[1733416156247,19.99127425,240.09,240.02,312.0]
[1733416156942,5.32106343,240.16,239.8,3.8467]
[1733416156943,23.776884,239.99,239.8,3.8467]
[1733416157115,19.99127425,239.99,239.9,19.99127425]
[1733416157520,19.99127425,239.95,239.86,19.99127425]
[1733416157730,20.0,239.92,239.8,3.8467]
[1733416158269,20.0,239.96,239.84,19.99127425]
[1733416158430,19.99127425,239.93,239.84,19.99127425]
[1733416158625,19.99127425,239.91,239.82,19.99127425]
[1733416159242,19.99127425,239.89,239.8,23.83797425]
[1733416159546,19.99127425,239.87,239.8,19.99127425]
[1733416159920,19.99127425,239.87,239.82,312.0]
[1733416160547,19.99127425,239.89,239.82,312.0]
[1733416161330,19.99127425,239.91,239.82,331.99127425]
[1733416161528,19.99127425,239.93,239.86,19.99127425]
[1733416162548,19.99127425,239.93,239.84,19.99127425]
[1733416162841,19.99127425,239.93,239.86,19.99127425]
[1733416163553,19.99127425,239.95,239.86,19.99127425]
[1733416164047,19.99127425,239.95,239.88,19.99127425]
[1733416164241,19.99127425,239.95,239.86,19.99127425]
[1733416164447,19.99127425,239.91,239.89,312.0]
[1733416165773,19.99127425,239.91,239.82,19.99127425]
[1733416165962,19.99127425,239.91,239.84,19.99127425]
[1733416167045,19.99127425,239.86,239.74,4.1152]
[1733416167348,19.99127425,239.86,239.76,19.99127425]
[1733416168148,19.99127425,239.86,239.78,19.99127425]
[1733416168717,19.99127425,239.86,239.81,312.0]
[1733416169955,19.99127425,239.86,239.77,19.99127425]
[1733416170564,19.99127425,239.84,239.75,19.99127425]
[1733416170872,19.99127425,239.84,239.77,19.99127425]
[1733416171543,19.99127425,239.84,239.75,19.99127425]
[1733416172368,19.99127425,239.82,239.73,19.99127425]
[1733416172967,19.99127425,239.82,239.74,312.0]
[1733416173369,23.776884,239.79,239.71,19.99127425]
[1733416173552,19.99127425,239.78,239.71,19.99127425]
[1733416173863,19.99127425,239.75,239.67,19.99127425]
[1733416174170,20.0,239.72,239.58,1.10394257]
[1733416174376,19.99127425,239.67,239.58,20.46952425]
[1733416174533,19.99127425,239.71,239.62,19.99127425]
[1733416174738,19.99127425,239.71,239.64,19.99127425]
[1733416174948,19.99127425,239.68,239.6,19.99127425]
[1733416175168,19.99127425,239.7,239.62,19.99127425]
[1733416175783,19.99127425,239.64,239.58,0.47825]
[1733416175970,23.776884,239.65,239.59,19.99127425]
[1733416176146,23.776884,239.67,239.59,19.99127425]
[1733416176344,23.776884,239.67,239.59,331.99127425]
[1733416176547,23.776884,239.67,239.6,19.99127425]
[1733416176952,20.0,239.72,239.65,19.99127425]
[1733416177166,19.99127425,239.77,239.69,19.99127425]
[1733416177760,10.1546,239.8,239.63,4.1519]
[1733416177761,19.99127425,239.75,239.67,19.99127425]
[1733416178253,19.99127425,239.68,239.6,19.99127425]
[1733416179450,23.776884,239.69,239.62,19.99127425]
[1733416179646,19.99127425,239.68,239.6,19.99127425]
[1733416179865,23.776884,239.67,239.63,312.0]
[1733416180182,23.776884,239.69,239.63,312.0]
[1733416180393,19.99127425,239.68,239.6,19.99127425]
[1733416180846,23.776884,239.67,239.6,19.99127425]
[1733416182083,23.776884,239.67,239.58,20.46952425]
[1733416182257,19.99127425,239.66,239.58,20.46952425]
[1733416182588,19.99127425,239.64,239.58,0.47825]
[1733416182956,23.776884,239.63,239.58,0.47825]
[1733416183377,23.776884,239.63,239.58,312.47825]
[1733416185295,19.99127425,239.62,239.58,0.47825]
[1733416185591,23.776884,239.61,239.58,0.47825]
[1733416185759,23.776884,239.63,239.58,0.47825]
[1733416187871,23.776884,239.59,239.58,0.47825]
[1733416188328,23.776884,239.59,239.58,0.35765]
[1733416189988,19.99127425,239.6,239.58,0.35765]
[1733416190489,19.99127425,239.62,239.58,0.35765]
[1733416190653,23.776884,239.61,239.58,0.35765]
[1733416190857,23.776884,239.59,239.58,0.35765]
[1733416191077,19.99127425,239.6,239.58,0.35765]
[1733416191468,19.99127425,239.62,239.58,312.35765]
[1733416193171,19.99127425,239.6,239.58,0.35765]
[1733416197476,23.776884,239.59,239.58,0.35765]
[1733416197670,34.211284,239.59,239.58,0.35765]
[1733416198099,46.7568193,239.59,239.58,0.35765]
[1733416198403,23.776884,239.55,239.44,12.5455353]
[1733416198613,12.5455353,239.53,239.44,12.5455353]
[1733416198895,12.5455353,239.53,239.46,12.5455353]
[1733416199711,12.5455353,239.53,239.48,312.0]
[1733416200620,36.3224193,239.55,239.48,312.0]
[1733416200788,12.5455353,239.55,239.48,324.5455353]
[1733416201715,23.776884,239.54,239.48,312.0]
[1733416201886,12.5455353,239.51,239.41,10.6447]
[1733416202088,12.5455353,239.51,239.43,12.5455353]
[1733416202293,12.5455353,239.56,239.49,12.5455353]
[1733416202518,12.5455353,239.6,239.52,12.5455353]
[1733416203387,12.5455353,239.6,239.42,11.06820216]
[1733416203583,10.4334,239.62,239.5,12.5455353]
[1733416203584,12.5455353,239.58,239.5,12.5455353]
[1733416204008,12.5455353,239.6,239.52,12.5455353]
[1733416204209,12.5455353,239.63,239.55,12.5455353]
[1733416204716,12.5455353,239.64,239.57,12.5455353]
[1733416204888,12.5455353,239.65,239.6,312.0]
[1733416205087,12.5455353,239.64,239.6,312.0]
[1733416205817,12.5455353,239.65,239.6,312.0]
[1733416206023,10.4261,239.72,239.53,3.9115]
[1733416206024,12.5455353,239.67,239.59,12.5455353]
[1733416206226,12.5455353,239.67,239.53,10.0892]
[1733416206227,6.4704,239.72,239.64,12.5455353]
[1733416206388,12.5455353,239.67,239.6,12.5455353]
[1733416206585,12.5455353,239.67,239.54,10.4366]
[1733416206586,10.4278,239.75,239.55,23.776884]
[1733416206792,10.4278,239.75,239.62,12.5455353]
[1733416207114,12.5455353,239.7,239.63,12.5455353]
[1733416207306,12.5455353,239.72,239.64,12.5455353]
[1733416207703,12.5455353,239.73,239.66,12.5455353]
[1733416208121,20.04307529,239.72,239.65,20.04307529]
[1733416209038,20.04307529,239.72,239.68,312.0]
[1733416209521,20.04307529,239.72,239.65,20.04307529]
[1733416210315,20.04307529,239.74,239.65,20.04307529]
[1733416210517,20.04307529,239.76,239.69,20.04307529]
[1733416210942,20.04307529,239.78,239.69,20.04307529]
[1733416211146,20.04307529,239.81,239.74,20.04307529]
[1733416211346,20.04307529,239.82,239.75,20.04307529]
[1733416211527,20.04307529,239.83,239.76,20.04307529]
[1733416212540,20.04307529,239.84,239.79,312.0]
[1733416213112,20.04307529,239.88,239.79,20.04307529]
[1733416213523,20.04307529,239.86,239.79,20.04307529]
[1733416214039,20.04307529,239.86,239.77,20.04307529]
[1733416215226,20.04307529,239.82,239.75,20.04307529]
[1733416215535,20.04307529,239.82,239.73,20.04307529]
[1733416215750,20.04307529,239.8,239.66,4.1485]
[1733416216048,20.04307529,239.78,239.69,20.04307529]
[1733416216353,20.04307529,239.72,239.66,4.1485]
[1733416216844,20.04307529,239.7,239.61,20.04307529]
[1733416217412,20.04307529,239.72,239.63,20.04307529]
[1733416217649,20.04307529,239.75,239.65,20.04307529]
[1733416217911,30.46987529,239.77,239.69,20.04307529]
[1733416218123,20.04307529,239.75,239.67,20.04307529]
[1733416218311,20.04307529,239.71,239.63,20.04307529]
[1733416218516,20.04307529,239.75,239.68,20.04307529]
[1733416219252,20.04307529,239.75,239.68,332.04307529]
[1733416219420,20.04307529,239.75,239.68,312.0]
[1733416219741,20.04307529,239.75,239.55,4.1227]
[1733416219945,20.04307529,239.67,239.59,20.04307529]
[1733416222152,20.04307529,239.71,239.63,20.04307529]
[1733416222355,20.04307529,239.67,239.55,4.1227]
[1733416222569,20.04307529,239.65,239.55,24.16577529]
[1733416222730,20.04307529,239.65,239.58,312.0]
[1733416223417,20.04307529,239.65,239.57,20.04307529]
[1733416223625,20.04307529,239.63,239.55,24.16577529]
[1733416224128,20.04307529,239.63,239.55,20.04307529]
[1733416224355,23.776884,239.55,239.41,3.9443]
[1733416224545,20.04307529,239.52,239.43,20.04307529]
[1733416224747,20.04307529,239.52,239.43,19.54307529]
[1733416225455,20.04307529,239.48,239.39,20.04307529]
[1733416225761,20.04307529,239.5,239.41,20.04307529]
[1733416226145,20.04307529,239.52,239.43,20.04307529]
[1733416226448,20.04307529,239.5,239.45,312.0]
[1733416226654,20.04307529,239.48,239.45,312.0]
[1733416227563,25.31265517,239.55,239.37,20.04307529]
[1733416227564,20.04307529,239.46,239.37,20.04307529]
[1733416227859,20.04307529,239.48,239.39,20.04307529]
[1733416229269,20.04307529,239.46,239.39,20.04307529]
[1733416229437,20.04307529,239.41,239.29,0.62658419]
[1733416229655,20.04307529,239.36,239.25,20.04307529]
[1733416229835,20.04307529,239.38,239.31,20.04307529]
[1733416230163,20.04307529,239.4,239.31,20.04307529]
[1733416230336,20.04307529,239.36,239.27,24.14207529]
[1733416230535,20.04307529,239.38,239.33,312.0]
[1733416231166,20.04307529,239.4,239.33,20.04307529]
[1733416231371,20.04307529,239.42,239.33,20.04307529]
[1733416233163,20.04307529,239.42,239.28,6.6518]
[1733416233164,20.04307529,239.4,239.31,20.04307529]
[1733416233341,20.04307529,239.38,239.29,20.04307529]
[1733416234165,20.04307529,239.38,239.33,312.0]
[1733416234745,20.04307529,239.4,239.31,20.04307529]
[1733416235063,20.04307529,239.4,239.27,4.099]
[1733416235266,20.04307529,239.4,239.31,20.04307529]
[1733416236167,20.04307529,239.4,239.33,20.04307529]
[1733416236470,20.04307529,239.42,239.33,20.04307529]
[1733416236765,20.04307529,239.44,239.35,20.04307529]
[1733416237760,20.04307529,239.44,239.4,312.0]
[1733416238674,20.04307529,239.46,239.37,20.04307529]
[1733416239345,20.04307529,239.46,239.39,20.04307529]
[1733416239566,20.04307529,239.48,239.39,20.04307529]
[1733416240376,20.04307529,239.5,239.41,20.04307529]
[1733416241549,20.04307529,239.5,239.49,312.0]
[1733416242081,20.04307529,239.5,239.43,20.04307529]
[1733416242777,20.04307529,239.52,239.43,20.04307529]
[1733416243451,20.04307529,239.5,239.43,20.04307529]
[1733416243640,20.04307529,239.5,239.41,3.2012]
[1733416244042,20.04307529,239.5,239.42,20.04307529]
[1733416244248,6.022,239.56,239.46,20.04307529]
[1733416244466,20.04307529,239.54,239.46,20.04307529]
[1733416244689,20.04307529,239.52,239.44,20.04307529]
[1733416245075,20.04307529,239.52,239.5,312.0]
[1733416246093,12.54920473,239.52,239.5,312.0]
[1733416246396,33.652884,239.51,239.23,3.367]
[1733416246702,23.776884,239.49,239.39,12.54920473]
[1733416246864,12.54920473,239.4,239.23,3.367]
[1733416247068,12.54920473,239.4,239.3,12.54920473]
[1733416247577,12.54920473,239.4,239.32,12.54920473]
[1733416247761,12.54920473,239.42,239.34,12.54920473]
[1733416247962,12.54920473,239.4,239.32,12.54920473]
[1733416248194,12.54920473,239.4,239.3,12.54920473]
[1733416248889,12.54920473,239.4,239.32,12.54920473]
[1733416249282,12.54920473,239.43,239.34,12.54920473]
[1733416249487,12.54920473,239.45,239.37,312.0]
[1733416249797,12.54920473,239.47,239.38,12.54920473]
[1733416249999,20.08611687,239.47,239.39,20.08611687]
[1733416251704,20.08611687,239.45,239.37,20.08611687]
[1733416252913,20.08611687,239.45,239.42,312.0]
[1733416254310,20.08611687,239.47,239.39,20.08611687]
[1733416256307,20.08611687,239.47,239.37,20.08611687]
[1733416256607,20.08611687,239.45,239.36,3.1583]
[1733416256806,20.08611687,239.45,239.35,20.08611687]
[1733416257216,20.08611687,239.45,239.41,312.0]
[1733416257375,20.08611687,239.43,239.41,312.0]
[1733416257908,20.08611687,239.43,239.35,20.08611687]
[1733416259183,20.08611687,239.43,239.33,20.08611687]
[1733416259511,20.08611687,239.41,239.33,20.08611687]
[1733416259691,23.776884,239.47,239.22,0.62653895]
[1733416259692,20.08611687,239.39,239.31,20.08611687]
[1733416259884,20.08611687,239.39,239.22,3.3064]
[1733416259885,20.08611687,239.37,239.29,20.08611687]
[1733416260080,20.08611687,239.39,239.31,20.08611687]
[1733416260421,20.08611687,239.41,239.33,20.08611687]
[1733416260789,20.08611687,239.41,239.35,312.0]
[1733416261503,20.08611687,239.39,239.31,20.08611687]
[1733416261684,20.08611687,239.37,239.28,20.08611687]
[1733416261888,20.08611687,239.39,239.3,20.08611687]
[1733416262206,20.08611687,239.43,239.34,20.08611687]
[1733416263011,20.08611687,239.41,239.32,20.08611687]
[1733416263455,20.08611687,239.39,239.32,20.08611687]
[1733416264285,20.08611687,239.41,239.36,312.0]
[1733416264520,20.0,239.34,239.21,20.08611687]
[1733416264684,20.08611687,239.34,239.26,20.08611687]
[1733416265018,20.08611687,239.33,239.25,20.08611687]
[1733416265824,20.08611687,239.32,239.25,20.08611687]
[1733416265993,20.08611687,239.34,239.27,20.08611687]
[1733416266190,6.2716,239.38,239.2,20.0]
[1733416266191,20.08611687,239.33,239.26,20.08611687]
[1733416267520,20.08611687,239.28,239.21,20.08611687]
[1733416267886,20.08611687,239.29,239.22,20.08611687]
[1733416268588,20.08611687,239.3,239.23,20.08611687]
[1733416269109,20.08611687,239.29,239.22,20.08611687]
[1733416269510,20.08611687,239.3,239.23,20.08611687]
[1733416269812,20.08611687,239.31,239.24,20.08611687]
[1733416269987,20.08611687,239.31,239.16,23.9005251]
[1733416269988,12.56783092,239.33,239.26,12.56783092]
[1733416270491,12.56783092,239.31,239.24,12.56783092]
[1733416270895,12.56783092,239.34,239.27,12.56783092]
[1733416271228,6.2716,239.38,239.22,23.776884]
[1733416271518,6.2716,239.38,239.25,20.0]
[1733416271726,16.7155,239.38,239.21,0.62680617]
[1733416272016,16.7155,239.38,239.2,10.4513]
[1733416272518,16.7155,239.38,239.2,20.0]
[1733416272702,23.776884,239.36,239.16,13.6404]
[1733416272901,23.776884,239.36,239.15,6.2196]
[1733416272902,12.56783092,239.26,239.1,14.35855]
[1733416273090,12.56783092,239.28,239.1,14.35855]
[1733416273296,12.56783092,239.26,239.18,12.56783092]
[1733416273611,12.56783092,239.27,239.22,312.0]
[1733416273994,20.12015993,239.28,239.22,312.0]
[1733416274312,30.56645993,239.32,239.24,20.12015993]
[1733416274516,10.4463,239.32,239.25,20.12015993]
[1733416274903,30.56645993,239.32,239.24,20.12015993]
[1733416275217,20.12015993,239.31,239.23,20.12015993]
[1733416275727,20.12015993,239.31,239.24,20.12015993]
[1733416275900,20.12015993,239.25,239.16,20.0]
[1733416276103,20.12015993,239.26,239.18,20.12015993]
[1733416276422,10.4463,239.32,239.1,3.90305]
[1733416276423,20.12015993,239.25,239.17,20.12015993]
[1733416276719,10.4463,239.32,239.17,20.12015993]
[1733416276720,20.12015993,239.24,239.17,20.12015993]
[1733416277426,20.12015993,239.24,239.17,332.12015993]
[1733416279230,20.12015993,239.25,239.17,332.12015993]
[1733416279521,6.4233,239.26,239.21,20.12015993]
[1733416279722,6.4233,239.26,239.12,10.4549]
[1733416279723,20.12015993,239.3,239.23,20.12015993]
[1733416280019,20.12015993,239.3,239.22,20.12015993]
[1733416280223,20.12015993,239.26,239.2,20.12015993]
[1733416280600,20.12015993,239.26,239.19,20.12015993]
[1733416280913,20.12015993,239.26,239.18,20.12015993]
[1733416281122,10.4469,239.31,239.1,3.90305]
[1733416281123,20.12015993,239.23,239.15,20.12015993]
[1733416281500,20.12015993,239.25,239.17,20.12015993]
[1733416281822,20.12015993,239.22,239.14,20.12015993]
[1733416282222,43.89704393,239.23,239.15,20.12015993]
[1733416282427,43.89704393,239.23,239.17,312.0]
[1733416282926,3.3277,239.24,239.17,312.0]
[1733416283103,23.44785993,239.24,239.17,312.0]
[1733416283713,3.3277,239.24,239.17,332.12015993]
[1733416284228,3.3277,239.24,239.18,20.12015993]
[1733416284800,23.44785993,239.29,239.22,20.12015993]
[1733416285114,30.56735993,239.3,239.23,20.12015993]
[1733416285308,20.12015993,239.3,239.23,20.12015993]
[1733416285632,26.49105993,239.32,239.24,20.12015993]
[1733416285944,20.12015993,239.31,239.24,20.12015993]
[1733416286129,20.12015993,239.28,239.21,20.12015993]
[1733416286438,20.12015993,239.27,239.2,20.12015993]
[1733416286608,20.12015993,239.26,239.18,20.12015993]
[1733416287706,20.12015993,239.26,239.19,20.12015993]
[1733416287916,20.12015993,239.26,239.2,312.0]
[1733416288818,20.12015993,239.27,239.2,20.12015993]
[1733416289015,30.56815993,239.28,239.21,20.12015993]
[1733416289216,20.12015993,239.27,239.2,20.12015993]
[1733416289518,20.12015993,239.26,239.18,20.12015993]
[1733416289918,20.12015993,239.27,239.2,20.12015993]
[1733416290233,20.12015993,239.27,239.19,20.12015993]
[1733416291733,30.56815993,239.28,239.21,312.0]
[1733416291917,20.12015993,239.29,239.21,332.12015993]
[1733416292320,20.12015993,239.27,239.21,312.0]
[1733416292631,20.12015993,239.28,239.21,20.12015993]
[1733416293524,20.12015993,239.27,239.2,20.12015993]
[1733416293729,20.12015993,239.28,239.2,20.12015993]